{"text_format":"3","workbook":"xlsx","n_sheets":2,"sheets":["Začiatok","Faktúra za služby"],"not_rendered":{"images":1,"defined_names":1},"read":"whole","date_system":"1900"}

{"sheet":"Začiatok","index":0,"n_rows":8,"n_cols":2,"rows_kept":8}
[null,"INFORMÁCIE O TEJTO ŠABLÓNE"]
[null,"Pomocou tejto šablóny môžete vytvoriť faktúru za služby s motívom jednoduchých čiar."]
[null,"Zadajte číslo faktúry, dátum, ID zákazníka, názov a slogan spoločnosti a fakturačné údaje."]
[null,"Do tabuliek zadajte informácie."]
[null,"Súčet sa automaticky vypočítava za vás."]
[null,"Poznámka: "]
[null,"V hárku FAKTÚRA ZA SLUŽBY sú v stĺpci A uvedené ďalšie pokyny. Tento text je zámerne skrytý. Ak chcete text odstrániť, vyberte stĺpec A a potom stlačte kláves DELETE. "]
[null,"Ak chcete získať ďalšie informácie o tabuľkách, v tabuľke stlačte kláves SHIFT a potom kláves F10, vyberte možnosť TABUĽKA a potom vyberte položku ALTERNATÍVNY TEXT."]

{"sheet":"Faktúra za služby","index":1,"n_rows":42,"n_cols":5,"rows_kept":42,"merged":[[1,1,1,2],[1,3,1,4],[2,1,2,2],[3,1,4,2],[10,1,10,4],[13,1,13,4],[39,1,39,2],[39,3,39,4],[40,1,40,4],[41,1,41,4],[43,2,43,3]]}
["V tomto hárku môžete vytvoriť faktúru za služby. V bunkách v tomto stĺpci sú užitočné pokyny na používanie tohto hárka. Začnite stlačením šípky nadol."]
["Do bunky napravo zadajte logo spoločnosti. V bunke D2 je nadpis tohto hárka.","V tejto bunke je zástupné logo.",null,"Faktúra"]
["Do bunky napravo zadajte názov spoločnosti a do bunky E3 zadajte dátum.","Názov spoločnosti",null,"Dátum:",{"$f":"TODAY()","v":"2021-12-17"}]
["Do bunky napravo zadajte slogan spoločnosti a do bunky E4 zadajte číslo faktúry."," Sem vložte slogan spoločnosti",null,"Č. faktúry:","Č."]
["Do bunky E5 zadajte ID zákazníka.",null,null,"ID zákazníka:","ID"]
["V bunke napravo sa nachádza označenie Pre. Do buniek C6 až C10 zadajte fakturačné údaje ako meno, názov spoločnosti, adresu a telefónne číslo. V bunke A12 je ďalší pokyn.","Pre:","Meno"]
[null,null,"Názov spoločnosti"]
[null,null,"Ulica"]
[null,null,"PSČ mesto"]
[null,null,"Telefón"]
[]
["Do tabuľky Podrobnosti o predaji od bunky vpravo zadajte informácie. V bunke A15 je ďalší pokyn.","Predajca","Zákazka","Platobné podmienky","Dátum splatnosti"]
[{"$nulls":3},"Splatnosť po prijatí"]
[]
["Do tabuľky Podrobnosti o faktúre od bunky vpravo zadajte informácie. Medzisúčet a súčet sa vypočítajú automaticky. Ďalší pokyn je v bunke A40.","Množstvo","Popis","Jednotková cena","Súčet riadka"]
[{"$nulls":4},{"$f":"IF(SUM(B16)>0,SUM(B16*D16),\"\")","v":""}]
[{"$nulls":4},""]
[{"$nulls":4},""]
[{"$nulls":4},""]
[{"$nulls":4},""]
[{"$nulls":4},""]
[{"$nulls":4},""]
[{"$nulls":4},""]
[{"$nulls":4},""]
[{"$nulls":4},""]
[{"$nulls":4},""]
[{"$nulls":4},""]
[{"$nulls":4},""]
[{"$nulls":4},""]
[{"$nulls":4},""]
[{"$nulls":4},""]
[{"$nulls":4},""]
[{"$nulls":4},""]
[{"$nulls":4},""]
[{"$nulls":4},""]
[{"$nulls":4},""]
[{"$nulls":3},"Medzisúčet",{"$f":"IF(SUM(E16:E36)>0,SUM(E16:E36),\"\")","v":""}]
[{"$nulls":3},"Daň z obratu"]
[{"$nulls":3}," Celková hodnota "]
["V bunke napravo sa nachádza poďakovanie.","Všetky šeky vystaviť v prospech spoločnosti ",null,{"$f":"B3","v":"Názov spoločnosti"}]
["Do bunky vpravo zadajte adresu spoločnosti, mesto a PSČ, telefónne a faxové číslo a e-mailovú adresu.","Ďakujeme, že využívate naše služby."]
[null,"Ulica, PSČ, Mesto, Telefón, Fax, E-mail"]